bitfinex/quotes_ETHUSD_20241215
["timestamp","ask_amount","ask_price","bid_price","bid_amount"]
[1734288622655,1.00879627,3894.3,3894.0,0.7886]
[1734288624837,0.758,3894.5,3894.0,0.7886]
[1734288625079,1.00879627,3895.0,3894.0,0.7886]
[1734288628296,1.00879627,3894.7,3894.0,0.7886]
[1734288629053,1.00879627,3895.0,3894.0,0.7886]
[1734288632111,0.04615196,3894.9,3894.0,0.7886]
[1734288641011,1.00879627,3895.0,3894.0,0.7886]
[1734288641345,1.00879627,3895.0,3894.2,0.8207]
[1734288641838,0.7553,3895.6,3894.4,2.56778]
[1734288642061,1.00879627,3895.7,3894.6,0.8207]
[1734288642202,0.04481907,3894.9,3894.8,0.8207]
[1734288642403,1.00879627,3895.9,3894.9,0.8207]
[1734288642841,0.04522077,3895.8,3894.9,0.8207]
[1734288643043,1.05401704,3895.8,3894.9,0.8207]
[1734288643362,0.04551308,3895.7,3894.9,0.8207]
[1734288643521,0.04551308,3895.7,3895.0,0.638829]
[1734288644804,0.04551308,3895.7,3895.1,0.7563]
[1734288644999,1.00879627,3896.0,3895.1,0.7563]
[1734288645263,0.04546845,3895.6,3895.1,0.7563]
[1734288645404,1.00879627,3895.7,3895.1,0.7563]
[1734288645599,0.04542382,3895.5,3895.1,0.7563]
[1734288645816,0.04546845,3895.6,3895.1,0.7563]
[1734288646016,0.04539342,3895.4,3895.1,0.7563]
[1734288646261,1.83030788,3896.2,3895.1,0.7563]
[1734288646518,0.04537726,3895.3,3895.1,0.7563]
[1734288646675,1.00879627,3895.7,3895.1,0.7563]
[1734288646863,0.04533262,3895.2,3895.1,0.7563]
[1734288647064,1.00879627,3896.3,3895.1,5.56731]
[1734288647333,1.00879627,3896.3,3895.3,0.7563]
[1734288647468,1.00879627,3896.3,3895.4,0.632361]
[1734288647818,1.00879627,3896.3,3895.5,0.7563]
[1734288652790,1.00879627,3896.4,3895.5,0.7563]
[1734288655574,1.00879627,3896.1,3895.5,0.7563]
[1734288658810,1.00879627,3896.4,3895.5,0.7563]
[1734288659034,1.00879627,3896.4,3895.7,0.8179]
[1734288660313,0.04477693,3896.3,3895.7,0.8179]
[1734288661264,0.04477693,3896.3,3895.9,0.8179]
[1734288661557,1.00879627,3896.7,3895.9,0.8179]
[1734288662163,0.0452713,3896.6,3895.9,0.8179]
[1734288662310,0.0452713,3896.6,3895.9,1.456382]
[1734288663756,1.00879627,3896.4,3895.9,0.8179]
[1734288664144,0.04513748,3896.3,3895.9,0.8179]
[1734288664510,1.00879627,3896.4,3895.9,0.8179]
[1734288664836,0.04509287,3896.2,3895.9,0.8179]
[1734288665039,0.04513748,3896.3,3895.9,0.8179]
[1734288665234,1.00879627,3896.4,3895.9,0.8179]
[1734288665550,0.04513748,3896.3,3895.4,0.632361]
[1734288665749,0.04513748,3896.3,3895.1,0.8179]
[1734288667523,1.00879627,3896.1,3895.1,0.8179]
[1734288668689,1.00879627,3895.8,3895.1,0.8179]
[1734288669224,0.04469898,3895.7,3895.1,0.8179]
[1734288673363,1.00879627,3895.5,3895.1,0.8179]
[1734288673536,1.00879627,3895.5,3894.4,0.8179]
[1734288673738,0.04410015,3895.4,3894.4,0.8179]
[1734288681674,1.00879627,3895.2,3894.4,0.8179]
[1734288682106,0.04371474,3895.1,3894.4,0.8179]
[1734288682321,1.00879627,3894.9,3894.4,0.8179]
[1734288682728,0.04350011,3894.8,3894.4,0.8179]
[1734288685827,0.22642975,3894.8,3894.4,0.8179]
[1734288687346,0.04350011,3894.8,3894.4,0.8179]
[1734288690802,1.00879627,3895.2,3894.4,0.8179]
[1734288691453,0.04341094,3895.1,3894.4,0.8179]
[1734288693605,0.04341094,3895.1,3894.5,3.7905]
[1734288693839,0.04341094,3895.1,3894.7,2.56758]
[1734288694012,0.04341094,3895.1,3894.9,0.7858]
[1734288694199,1.00879627,3895.9,3894.9,0.7858]
[1734288694626,0.04059326,3895.8,3894.9,0.7858]
[1734288694794,1.00879627,3895.6,3894.9,0.7858]
[1734288695206,0.04057342,3895.5,3894.9,0.7858]
[1734288696047,0.04052879,3895.4,3894.9,0.7858]
[1734288696254,0.04052879,3895.4,3894.9,1.16438]
[1734288696434,0.99936969,3895.6,3894.9,1.16438]
[1734288696748,0.03922097,3895.5,3894.9,1.16438]
[1734288698043,1.00879627,3895.9,3895.0,0.7858]
[1734288698550,1.87864844,3896.3,3895.2,0.7858]
[1734288698551,0.03935485,3895.8,3895.2,0.7858]
[1734288698732,1.00879627,3896.3,3895.4,0.7858]
[1734288699044,0.03948119,3895.7,3895.6,0.7592]
[1734288699249,1.00879627,3896.3,3895.6,0.7592]
[1734288699651,0.04000829,3896.2,3895.6,0.7592]
[1734288702451,1.00879627,3896.3,3895.6,0.7592]
[1734288702861,0.04000829,3896.2,3895.6,0.7592]
[1734288703621,1.00879627,3896.0,3895.6,0.7592]
[1734288704022,0.03987444,3895.9,3895.6,0.7592]
[1734288706964,0.03987444,3895.9,3894.9,0.37858]
[1734288707180,0.03987444,3895.9,3895.0,1.40426044]
[1734288710577,0.03987444,3895.9,3895.1,0.12909276]
[1734288711600,1.00879627,3895.7,3895.0,0.7592]
[1734288711881,0.03988307,3895.6,3895.0,0.7592]
[1734288712079,0.03988307,3895.6,3895.0,1.14232644]
[1734288713050,1.00879627,3896.0,3895.0,1.14232644]
[1734288713247,1.00879627,3896.0,3895.0,0.7592]
[1734288713447,0.04004068,3895.9,3895.0,0.7592]
[1734288714895,0.7682,3896.1,3895.0,0.7592]
[1734288715077,0.03995805,3895.8,3895.0,0.7592]
[1734288715294,0.0400473,3896.0,3895.0,0.7592]
[1734288715519,0.03991343,3895.7,3895.1,0.75305626]
[1734288715678,0.04000268,3895.9,3895.1,0.75305626]
[1734288715881,2.08224471,3896.3,3895.1,0.75305626]
[1734288716110,0.03995805,3895.8,3895.1,0.75305626]
[1734288716314,2.08224471,3896.3,3895.1,0.75305626]
[1734288716517,0.03991343,3895.7,3895.1,0.75305626]
[1734288716727,1.00879627,3896.3,3895.2,0.801]
[1734288716898,0.0398688,3895.6,3895.2,0.801]
[1734288717077,1.00879627,3896.3,3895.4,0.801]
[1734288717483,0.04013653,3896.2,3895.4,0.801]
[1734288717699,0.04013653,3896.2,3895.4,1.51312963]
[1734288717900,0.7905,3896.1,3895.4,0.71212963]
[1734288718210,0.7905,3896.1,3895.1,0.75305626]
[1734288718211,0.0400473,3896.0,3895.1,0.75305626]
[1734288720509,0.0400473,3896.0,3895.2,0.78]
[1734288720725,0.0400473,3896.0,3895.2,3.78]
[1734288721040,0.04013088,3895.9,3895.2,3.78]
[1734288721244,0.04013088,3895.9,3895.6,2.56696]
[1734288721444,0.7765,3896.7,3895.8,0.78]
[1734288721648,1.00879627,3896.9,3895.8,0.78]
[1734288721951,0.92876375,3896.8,3895.8,0.78]
[1734288722148,0.04079831,3896.8,3895.8,0.78]
[1734288723120,1.00879627,3896.6,3895.8,0.78]
[1734288723352,0.0406645,3896.5,3895.8,0.78]
[1734288731825,0.8171645,3896.5,3895.8,0.78]
[1734288744050,0.8171645,3896.5,3895.8,3.78]
[1734288744254,0.8171645,3896.5,3896.0,3.0]
[1734288744474,0.0406645,3896.5,3896.1,0.8083]
[1734288744884,0.7984,3896.8,3896.1,0.8083]
[1734288745083,0.03986402,3896.4,3896.1,0.8083]
[1734288745389,0.7984,3896.8,3896.1,0.8083]
[1734288745564,0.03864451,3896.7,3896.2,0.74484784]
[1734288746488,0.03864451,3896.7,3896.1,0.8083]
[1734288747559,0.03864451,3896.7,3896.2,3.0]
[1734288747767,0.7984,3896.8,3896.2,3.0]
[1734288747964,0.03730962,3896.7,3896.2,3.0]
[1734288748361,0.03730962,3896.7,3896.2,5.56657]
[1734288748563,1.87184844,3897.1,3896.4,2.56645]
[1734288748792,0.92642741,3897.0,3896.5,2.5664]
[1734288749091,0.03756208,3897.0,3896.5,2.5664]
[1734288749391,1.07344844,3897.3,3896.5,2.5664]
[1734288749550,0.92648665,3897.2,3896.4,3.8083]
[1734288749887,0.88866454,3897.1,3896.4,4.5095287]
[1734288750092,0.03782211,3897.2,3896.4,7.0759787]
[1734288750290,0.03681618,3897.0,3896.4,7.0759787]
[1734288750503,0.03686077,3897.1,3896.4,7.0759787]
[1734288750795,0.03681618,3897.0,3896.4,7.0759787]
[1734288751089,1.87184844,3897.4,3896.5,0.77134657]
[1734288751290,0.03677158,3896.9,3896.5,0.77134657]
[1734288751526,1.87184844,3897.4,3896.5,0.77134657]
[1734288751835,2.22119003,3897.3,3896.5,0.77134657]
[1734288752019,0.92538138,3897.2,3896.5,0.77134657]
[1734288752217,0.03690537,3897.2,3896.6,0.77835836]
[1734288752535,1.87184844,3897.4,3896.6,0.77835836]
[1734288752731,0.03686077,3897.1,3896.6,0.77835836]
[1734288752937,1.86875881,3897.4,3896.6,0.77835836]
[1734288753110,0.03681618,3897.0,3896.6,0.77835836]
[1734288753293,1.86875881,3897.4,3896.7,0.76558922]
[1734288753491,0.03677158,3896.9,3896.7,0.76558922]
[1734288753738,0.79531037,3897.4,3896.7,0.76558922]
[1734288753918,0.03672698,3896.8,3896.7,0.76558922]
[1734288754119,1.86875881,3897.4,3896.7,0.76558922]
[1734288754299,0.03672698,3896.8,3896.7,0.76558922]
[1734288754821,0.79531037,3897.4,3896.7,0.76558922]
[1734288755015,0.92522483,3897.3,3896.7,0.76558922]
[1734288755221,0.03694996,3897.3,3896.7,0.76558922]
[1734288760320,0.03694996,3897.3,3896.5,0.50278383]
[1734288761945,0.03694996,3897.3,3896.6,3.0]
[1734288762843,0.03694996,3897.3,3896.8,3.0]
[1734288764505,0.03694996,3897.3,3896.7,3.0]
[1734288764741,0.03694996,3897.3,3896.8,3.0]
[1734288765044,0.03694996,3897.3,3896.8,3.60689838]
[1734288767950,0.03694996,3897.3,3896.8,3.17308838]
[1734288768147,0.03694996,3897.3,3897.0,2.56607]
[1734288768356,1.07344844,3897.6,3897.0,2.56607]
[1734288768649,0.88842554,3897.5,3897.0,2.56607]
[1734288768863,0.03744527,3897.4,3897.1,5.96068684]
[1734288769153,0.8218,3897.7,3897.2,2.56594]
[1734288769456,0.8218,3897.7,3897.2,5.56594]
[1734288769620,0.03633857,3897.6,3897.3,3.0]
[1734288769826,0.03633857,3897.6,3897.3,3.89606568]
[1734288770285,0.03633857,3897.6,3897.3,0.89606568]
[1734288771682,0.8218,3897.7,3897.3,0.89606568]
[1734288772380,0.03646674,3897.6,3897.3,0.89606568]
[1734288773284,0.8218,3897.7,3897.3,0.89606568]
[1734288773485,0.03646674,3897.6,3897.3,0.89606568]
[1734288774026,0.8218,3897.7,3897.3,0.89606568]
[1734288774347,0.03646674,3897.6,3897.3,0.89606568]
[1734288774648,0.8218,3897.7,3897.3,0.89606568]
[1734288774950,0.03646674,3897.6,3897.3,0.89606568]
[1734288775349,0.8218,3897.7,3897.3,0.89606568]
[1734288775791,0.03646674,3897.6,3897.3,0.89606568]
[1734288776157,0.8218,3897.7,3897.3,0.89606568]
[1734288776363,0.8218,3897.7,3897.4,0.7370295]
[1734288776673,0.03525068,3897.6,3897.4,4.5147295]
[1734288776887,0.8128,3898.0,3897.5,3.0]
[1734288777553,0.8128,3898.0,3897.4,1.5147295]
[1734288777760,0.8128,3898.0,3897.4,0.7777]
[1734288779665,0.8128,3898.0,3897.3,3.0]
[1734288780365,0.0357072,3897.9,3897.3,3.0]
[1734288780866,0.781,3897.7,3896.8,0.7756]
[1734288781584,0.03557346,3897.6,3896.8,3.7756]
[1734288781899,0.781,3897.7,3896.8,4.409783]
[1734288782402,0.03557346,3897.6,3896.8,4.409783]
[1734288782607,0.03557346,3897.6,3896.8,4.93299809]
[1734288784272,0.03557346,3897.6,3896.8,0.52321509]
[1734288789369,0.03557346,3897.6,3896.9,3.0]
[1734288790300,0.03557346,3897.6,3896.8,0.52321509]
[1734288790812,0.81572271,3897.5,3896.8,0.52321509]
[1734288792728,0.81572271,3897.5,3896.9,3.0]
[1734288792934,0.81572271,3897.5,3896.9,3.71628635]
[1734288799641,0.81572271,3897.5,3896.9,3.0]
[1734288800739,0.81572271,3897.5,3896.7,4.07344844]
[1734288800943,0.81572271,3897.5,3896.7,1.07344844]
[1734288802038,0.81572271,3897.5,3896.6,4.57745783]
[1734288803957,0.81572271,3897.5,3896.7,1.07344844]
[1734288804396,0.8207,3897.4,3896.7,1.07344844]
[1734288804544,0.8893519,3897.3,3896.5,1.07344844]
[1734288804748,0.8207,3897.2,3896.4,4.07344844]
[1734288805175,0.03432273,3897.1,3896.4,4.07344844]
[1734288805497,0.8207,3897.0,3896.4,4.07344844]
[1734288805639,0.8207,3897.0,3896.5,0.82501511]
[1734288805839,0.03408164,3896.9,3896.5,0.82501511]
[1734288806040,0.03408164,3896.9,3896.5,1.34097831]
[1734288806494,0.8207,3897.0,3896.5,1.34097831]
[1734288806692,0.03403704,3896.8,3896.5,1.34097831]
[1734288806861,0.8207,3897.0,3896.6,0.95911294]
[1734288807060,0.03399244,3896.7,3896.6,0.95911294]
[1734288807298,0.8207,3897.0,3896.6,0.95911294]
[1734288807446,0.03399244,3896.7,3896.6,3.95911294]
[1734288807645,0.8207,3897.0,3896.6,0.95911294]
[1734288807939,0.03399244,3896.7,3896.6,0.95911294]
[1734288808147,0.8207,3897.0,3896.6,3.95911294]
[1734288808583,0.03408164,3896.9,3896.6,3.95911294]
[1734288808983,0.03408164,3896.9,3896.7,0.81149746]
[1734288809298,0.03408164,3896.9,3896.7,1.8849459]
[1734288809502,0.8207,3897.0,3896.7,4.8849459]
[1734288809853,0.8207,3897.0,3896.7,1.8849459]
[1734288810654,0.8207,3897.5,3896.7,1.8849459]
[1734288810892,0.03408164,3896.9,3896.7,1.8849459]
[1734288811199,0.8207,3897.5,3896.8,3.95773518]
[1734288811366,0.88958998,3897.4,3896.7,4.07344844]
[1734288811548,0.0343046,3897.4,3896.7,4.07344844]
[1734288811808,0.0343046,3897.4,3896.8,1.07344844]
[1734288812852,0.0343046,3897.4,3896.7,4.07344844]
[1734288814356,0.0343046,3897.4,3896.7,1.07344844]
[1734288816256,0.8268,3897.3,3896.7,1.07344844]
[1734288816554,0.86048627,3897.3,3896.7,1.07344844]
[1734288821756,0.86048627,3897.3,3896.8,1.07344844]
[1734288822560,1.05387974,3897.3,3896.7,1.07344844]
[1734288822726,1.05387974,3897.3,3896.6,3.0]
[1734288822727,0.8043,3897.1,3896.6,1.07344844]
[1734288822954,0.83764875,3897.0,3896.6,1.07344844]
[1734288823816,0.32434875,3897.0,3896.6,1.07344844]
[1734288824017,0.03197892,3896.9,3896.6,1.07344844]
[1734288825365,0.32434875,3897.0,3896.6,1.07344844]
[1734288825870,0.03197892,3896.9,3896.6,1.07344844]
[1734288826031,0.03197892,3896.9,3896.5,4.07344844]
[1734288826431,0.03197892,3896.9,3896.4,4.07344844]
[1734288826628,0.03197892,3896.9,3896.4,1.07344844]
[1734288828703,0.03197892,3896.9,3896.3,3.51125619]
[1734288828704,0.03197892,3896.9,3896.3,4.58470463]
[1734288828904,0.8043,3896.8,3896.3,4.58470463]
[1734288829110,0.83623432,3896.8,3896.3,4.58470463]
[1734288829309,0.83623432,3896.8,3896.4,1.07344844]
[1734288829467,0.83623432,3896.8,3896.3,4.07344844]
[1734288829667,0.83623432,3896.8,3896.4,1.07344844]
[1734288829874,0.83623432,3896.8,3896.2,4.07344844]
[1734288830306,0.83623432,3896.8,3896.2,1.07344844]
[1734288831871,0.83623432,3896.8,3896.1,4.07344844]
[1734288832908,0.83623432,3896.8,3896.2,1.07344844]
[1734288833085,0.83623432,3896.8,3896.2,0.90276511]
[1734288834774,0.83623432,3896.8,3896.1,4.07344844]
[1734288835110,0.83623432,3896.8,3896.1,3.0]
[1734288835919,0.83623432,3896.8,3896.1,1.07344844]
[1734288836086,0.83623432,3896.8,3896.3,3.0]
[1734288836291,0.83623432,3896.8,3896.0,7.14126373]
[1734288836474,0.83623432,3896.8,3896.1,3.96559064]
[1734288837081,0.83623432,3896.8,3896.1,3.0]
[1734288837603,0.83623432,3896.8,3896.0,1.57453373]
[1734288837808,0.83623432,3896.8,3896.2,3.0]
[1734288840793,0.83623432,3896.8,3896.2,2.56658]
[1734288841208,0.83623432,3896.8,3896.5,2.56639]
[1734288841823,0.8043,3896.8,3896.5,2.56639]
[1734288842737,0.03158585,3896.7,3896.5,2.56639]
[1734288843205,0.8043,3896.8,3896.5,2.56639]
[1734288843389,0.8043,3896.8,3896.4,3.0]
[1734288843591,0.03158585,3896.7,3896.4,3.0]
[1734288843795,0.03158585,3896.7,3896.1,1.07344844]
[1734288843992,0.8043,3896.8,3896.2,2.02632808]
[1734288844190,0.8043,3896.8,3896.2,0.95287964]
[1734288844523,0.03158585,3896.7,3896.2,2.02632808]
[1734288844731,0.8043,3896.8,3896.2,2.02632808]
[1734288844912,0.03158585,3896.7,3896.2,2.02632808]
[1734288845110,0.8043,3896.8,3896.4,3.0]
[1734288845313,0.03158585,3896.7,3896.4,3.0]
[1734288845519,0.8043,3896.8,3896.4,3.0]
[1734288845870,1.00879627,3897.3,3895.9,1.07344844]
[1734288845871,0.783,3896.5,3895.9,1.07344844]
[1734288846157,0.783,3896.3,3895.7,1.07344844]
[1734288846313,0.783,3896.3,3895.8,0.50731386]
[1734288846661,0.03112541,3896.2,3895.8,0.50731386]
[1734288847002,0.783,3896.3,3895.8,0.50731386]
[1734288847206,0.0310808,3896.1,3895.8,0.50731386]
[1734288847449,0.03112541,3896.2,3895.8,1.22208909]
[1734288847754,0.783,3896.3,3895.8,1.22208909]
[1734288848260,0.03112541,3896.2,3895.8,1.22208909]
[1734288848618,0.783,3896.3,3895.8,1.22208909]
[1734288849467,0.03112541,3896.2,3895.8,1.22208909]
[1734288849810,0.783,3896.3,3895.8,1.22208909]
[1734288850323,0.03112541,3896.2,3895.8,1.22208909]
[1734288850542,0.783,3896.3,3895.8,1.22208909]
[1734288850856,0.03112541,3896.2,3895.8,1.22208909]
[1734288851257,0.783,3896.3,3895.8,1.22208909]
[1734288851615,0.03112541,3896.2,3895.8,1.22208909]
[1734288852052,0.783,3896.3,3895.8,1.22208909]
[1734288852358,0.03112541,3896.2,3895.8,1.22208909]
[1734288852565,0.03112541,3896.2,3895.8,0.50731386]
[1734288852712,0.783,3896.6,3896.0,2.56671]
[1734288853077,0.03110728,3896.5,3896.0,2.56671]
[1734288854042,0.03110728,3896.5,3895.8,0.50731386]
[1734288854245,0.03110728,3896.5,3895.9,3.0]
[1734288854450,0.03106267,3896.4,3895.8,0.50731386]
[1734288854771,0.8142,3896.3,3895.8,0.50731386]
[1734288854954,0.84521806,3896.3,3895.8,0.50731386]
[1734288857459,1.03061949,3896.3,3895.8,0.50731386]
[1734288859480,0.7613,3896.2,3895.8,0.50731386]
[1734288859776,0.03073412,3896.1,3895.8,0.50731386]
[1734288860434,0.7613,3896.0,3895.3,1.07344844]
[1734288860632,0.7613,3896.0,3895.3,3.0]
[1734288860880,0.03050238,3895.9,3895.3,3.0]
[1734288861061,0.03050238,3895.9,3895.3,3.67692377]
[1734288862539,0.03050238,3895.9,3895.4,3.0]
[1734288862739,0.7613,3896.0,3895.4,3.0]
[1734288862944,0.03050238,3895.9,3895.4,3.0]
[1734288863170,0.7613,3896.0,3895.4,3.0]
[1734288863538,0.03026488,3895.9,3895.4,3.0]
[1734288863752,0.7613,3896.0,3895.4,3.0]
[1734288864084,0.03026488,3895.9,3895.4,3.0]
[1734288864525,0.03022026,3895.8,3895.4,3.0]
[1734288864701,0.7613,3896.0,3895.4,3.67532608]
[1734288864916,0.03026488,3895.9,3895.4,3.67532608]
[1734288865075,0.7613,3896.0,3895.4,3.67532608]
[1734288865277,0.03026488,3895.9,3895.4,3.67532608]
[1734288865620,0.7613,3896.0,3895.4,3.67532608]
[1734288866025,0.03026488,3895.9,3895.4,3.67532608]
[1734288866323,0.7613,3896.0,3895.4,3.67532608]
[1734288866478,0.03026488,3895.9,3895.4,3.67532608]
[1734288866680,0.7613,3896.0,3895.4,3.67532608]
[1734288866913,0.03026488,3895.9,3895.4,3.67532608]
[1734288867092,0.7613,3896.0,3895.4,3.67532608]
[1734288867279,0.03026488,3895.9,3895.4,3.67532608]
[1734288867630,0.7613,3896.0,3895.4,3.67532608]
[1734288867918,0.03026488,3895.9,3895.4,3.67532608]
[1734288868140,0.7613,3896.0,3895.4,3.67532608]
[1734288868345,0.03026488,3895.9,3895.4,3.67532608]
[1734288868512,0.7613,3896.0,3895.4,3.67532608]
[1734288868710,0.03026488,3895.9,3895.4,3.67532608]
[1734288868942,0.7613,3896.0,3895.5,0.67516631]
[1734288869096,0.03026488,3895.9,3895.5,0.67516631]
[1734288869296,0.7613,3896.0,3895.5,0.67516631]
[1734288869497,0.03026488,3895.9,3895.5,0.67516631]
[1734288869830,0.7613,3896.0,3895.5,0.67516631]
[1734288870194,0.03026488,3895.9,3895.5,0.67516631]
[1734288870394,0.7613,3896.0,3895.5,0.67516631]
[1734288871811,0.7613,3896.0,3895.6,0.78248918]
[1734288872015,0.7613,3896.4,3895.6,0.78248918]
[1734288872344,0.02932038,3896.3,3895.6,0.78248918]
[1734288873192,0.02932038,3896.3,3895.8,2.56685]
[1734288888346,0.02932038,3896.3,3895.8,2.93106544]
[1734288889234,0.02932038,3896.3,3895.8,4.00636986]
[1734288889549,0.02932038,3896.3,3895.8,2.93106544]
[1734288889734,0.02932038,3896.3,3895.8,2.56685]
[1734288891927,0.02932038,3896.3,3895.8,3.64215442]
[1734288892377,0.02932038,3896.3,3895.8,2.56685]
[1734288894636,0.02932038,3896.3,3895.8,3.64215442]
[1734288894981,0.02932038,3896.3,3895.8,2.56685]
[1734288895137,0.02932038,3896.3,3895.7,4.07530442]
[1734288895332,0.02932038,3896.3,3895.7,1.07530442]
[1734288895537,0.7663,3896.2,3895.7,1.07530442]
[1734288895766,0.02898962,3896.1,3895.7,1.07530442]
[1734288895951,0.02898962,3896.1,3895.6,6.64228442]
[1734288897138,0.7663,3896.2,3895.6,6.64228442]
[1734288897448,0.02898962,3896.1,3895.6,6.64228442]
[1734288897977,0.7663,3896.2,3895.6,6.64228442]
[1734288898144,0.7663,3896.0,3895.6,1.07530442]
[1734288898347,0.7663,3896.0,3895.5,4.07530442]
[1734288898565,0.02886712,3895.9,3895.5,4.07530442]
[1734288898739,0.02886712,3895.9,3895.6,3.0]
[1734288898935,0.02886712,3895.9,3895.5,1.07530442]
[1734288899169,0.02886712,3895.9,3895.7,3.0]
[1734288907896,0.02886712,3895.9,3895.7,2.56693]
[1734288908097,0.02886712,3895.9,3895.8,2.56686]
[1734288908323,1.84130442,3896.5,3896.0,2.5667]
[1734288908501,0.89021356,3896.4,3896.0,2.5667]
[1734288908713,0.02779925,3896.4,3896.0,2.5667]
[1734288911506,0.89031158,3896.3,3896.0,2.5667]
[1734288911705,0.02779925,3896.4,3896.0,2.5667]
[1734288911900,0.02771003,3896.2,3896.0,2.5667]
[1734288912101,1.84130442,3896.5,3896.0,2.5667]
[1734288912341,0.89029617,3896.4,3896.0,2.5667]
[1734288912538,0.02779925,3896.4,3896.0,2.5667]
[1734288913605,0.89037316,3896.3,3896.0,2.5667]
[1734288913800,0.02771003,3896.2,3896.0,2.5667]
[1734288914013,1.84130442,3896.5,3896.0,2.5667]
[1734288914303,0.91816475,3896.4,3896.0,2.5667]
[1734288914503,0.02779925,3896.4,3896.0,2.5667]
[1734288916595,0.8904514,3896.3,3896.0,2.5667]
[1734288916838,0.02771003,3896.2,3896.0,2.5667]
[1734288917341,1.84130442,3896.5,3896.0,2.5667]
[1734288917523,0.02766541,3896.1,3896.0,2.5667]
[1734288917695,1.84130442,3896.5,3896.0,2.5667]
[1734288917897,0.89043783,3896.4,3896.0,2.5667]
[1734288918092,0.89043783,3896.3,3896.0,2.5667]
[1734288918299,1.10310367,3896.4,3896.0,2.5667]
[1734288918507,0.02771003,3896.2,3896.0,2.5667]
[1734288918713,1.07530442,3896.4,3896.0,2.5667]
[1734288918955,0.02774621,3896.1,3895.7,1.07530442]
[1734288919255,0.8231016,3896.0,3895.7,1.07530442]
[1734288919397,0.8231016,3896.0,3895.5,6.64231442]
[1734288919825,0.8231016,3896.0,3895.6,1.07530442]
[1734288920032,0.8231016,3896.0,3895.7,3.0]
[1734288921421,0.8231016,3896.0,3895.7,2.56692]
[1734288921626,0.8231016,3896.0,3895.8,3.0]
[1734288922427,0.0277016,3896.0,3895.6,1.07530442]
[1734288922666,1.87070442,3896.3,3895.8,2.56686]
[1734288922892,0.02761894,3895.9,3895.8,5.56686]
[1734288923167,1.87070442,3896.3,3895.8,5.56686]
[1734288923372,0.02761894,3895.9,3895.8,5.56686]
[1734288923569,2.15060885,3896.6,3895.8,4.73952086]
[1734288923570,1.07530442,3896.4,3895.8,4.73952086]
[1734288923777,0.02761894,3895.9,3895.8,5.56686]
[1734288923974,1.07530442,3896.5,3896.0,2.56671]
[1734288924274,0.91818541,3896.4,3896.0,2.56671]
[1734288924479,0.02779925,3896.4,3896.0,2.56671]
[1734288930954,1.87070442,3896.6,3896.0,2.56671]
[1734288931168,0.02775464,3896.3,3896.0,2.56671]
[1734288931837,0.02771003,3896.2,3896.0,2.56671]
[1734288932321,0.02771003,3896.2,3896.1,2.56666]
[1734288932445,1.87070442,3896.6,3896.1,2.56666]
[1734288932774,2.22571608,3896.5,3896.2,2.56654]
[1734288933081,0.89028319,3896.4,3896.0,2.56672]
[1734288933267,1.87070442,3896.6,3895.9,1.07680866]
[1734288933433,2.22567826,3896.5,3896.1,2.56665]
[1734288933640,1.87070442,3896.6,3896.1,2.56665]
[1734288933893,2.22565563,3896.5,3896.1,2.56665]
[1734288934190,0.89026554,3896.4,3896.1,2.56665]
[1734288934398,1.87070442,3896.6,3896.1,2.56665]
[1734288934546,2.22563612,3896.5,3896.1,2.56665]
[1734288934747,1.87070442,3896.6,3896.1,2.56665]
[1734288935062,2.22563643,3896.5,3896.1,2.56665]
[1734288935264,1.87070442,3896.6,3896.1,2.56665]
[1734288935580,2.22564606,3896.5,3896.1,2.56665]
[1734288935751,1.87070442,3896.6,3896.1,2.56665]
[1734288936096,2.22563706,3896.5,3896.1,2.56665]
[1734288936301,1.87070442,3896.6,3896.1,2.56665]
[1734288936593,2.2256132,3896.5,3896.1,2.56665]
[1734288936798,1.87070442,3896.6,3896.1,2.56665]
[1734288937092,2.22560738,3896.5,3896.1,2.56665]
[1734288937316,1.87070442,3896.6,3896.1,2.56665]
[1734288937505,2.22558377,3896.5,3896.1,2.56665]
[1734288937725,1.87070442,3896.6,3896.1,2.56665]
[1734288937997,2.22557695,3896.5,3896.1,2.56665]
[1734288938179,1.87070442,3896.6,3896.1,2.56665]
[1734288938497,2.22555628,3896.5,3896.0,0.2]
[1734288938705,0.89022251,3896.4,3896.0,2.76672]
[1734288938871,1.07530442,3896.5,3896.0,2.76672]
[1734288939078,0.89024535,3896.4,3896.0,2.76672]
[1734288939271,1.87070442,3896.6,3896.0,2.76672]
[1734288939477,2.22558465,3896.5,3896.0,2.76672]
[1734288939849,0.89023386,3896.4,3896.0,2.56490977]
[1734288939968,1.52455015,3896.5,3896.0,2.56490977]
[1734288940297,0.89024455,3896.4,3896.0,2.56490977]
[1734288940601,1.52455015,3896.5,3896.0,2.56490977]
[1734288940781,1.28353408,3896.4,3896.0,2.56490977]
[1734288940955,0.39329068,3896.4,3896.0,2.56490977]
[1734288944210,1.07530442,3896.5,3896.0,2.56490977]
[1734288944503,0.8902343,3896.4,3896.0,2.56490977]
[1734288944687,1.87070442,3896.6,3896.0,2.56490977]
[1734288944893,2.22558682,3896.5,3896.0,2.56490977]
[1734288945202,0.89023473,3896.4,3896.0,2.56490977]
[1734288945401,0.02787529,3896.4,3896.0,2.56490977]
[1734288945607,0.02787529,3896.4,3895.9,1.07680866]
[1734288945824,0.02783068,3896.3,3896.1,4.83620866]
[1734288945967,0.02783068,3896.3,3896.2,5.5666]
[1734288946162,1.07530442,3896.9,3896.4,2.56645]
[1734288946491,2.25357124,3896.8,3896.4,2.56645]
[1734288946693,0.02812976,3896.8,3896.4,2.56645]
[1734288950259,0.88999298,3896.7,3896.3,3.0]
[1734288950412,0.02804055,3896.6,3896.3,3.0]
[1734288950616,1.07530442,3896.9,3896.3,3.0]
[1734288950829,2.62280179,3896.8,3896.3,3.0]
[1734288951031,0.88998652,3896.7,3896.3,3.0]
[1734288951249,0.02804055,3896.6,3896.3,3.0]
[1734288951450,1.07530442,3896.9,3896.3,3.0]
[1734288951682,2.25311251,3896.8,3896.3,3.0]
[1734288951868,0.8899931,3896.7,3896.3,3.0]
[1734288952079,0.02804055,3896.6,3896.3,3.0]
[1734288952239,1.07530442,3896.9,3896.3,3.0]
[1734288952447,2.25300505,3896.8,3896.3,3.0]
[1734288952672,0.88999302,3896.7,3896.4,3.0]
[1734288952980,0.02793329,3896.6,3896.4,3.0]
[1734288953386,1.74151104,3896.9,3896.4,3.0]
[1734288953540,0.02788869,3896.5,3896.4,3.0]